bitfinex/quotes_ETHUSD_20250110
["timestamp","ask_amount","ask_price","bid_price","bid_amount"]
[1736519156800,0.5117,3276.7,3275.9,3.05255]
[1736519156995,0.03503603,3276.6,3275.7,3.05278]
[1736519157310,0.03503603,3276.6,3275.6,3.05286]
[1736519157311,3.08705603,3276.6,3275.6,3.05286]
[1736519157490,3.05202,3276.6,3275.6,3.05286]
[1736519157831,0.55,3276.3,3275.3,3.05313]
[1736519158136,3.05235,3276.2,3275.3,3.05313]
[1736519158340,0.55,3276.3,3275.3,3.05313]
[1736519158984,0.03503603,3276.2,3275.3,3.05313]
[1736519159221,0.55,3276.3,3275.3,3.05313]
[1736519159419,3.60225,3276.3,3275.3,3.05313]
[1736519159743,3.60225,3276.3,3274.9,3.88871]
[1736519159744,3.05258,3276.0,3274.9,3.88871]
[1736519159880,3.25533603,3275.9,3274.9,3.443131]
[1736519160125,3.25533603,3275.9,3275.0,0.0075]
[1736519160332,0.1677,3275.9,3275.1,3.05331]
[1736519161582,3.60243,3276.1,3275.1,3.05331]
[1736519161958,3.05263,3275.9,3275.0,0.0075]
[1736519162131,0.03503603,3275.8,3275.0,0.0075]
[1736519162550,0.03503603,3275.8,3274.7,3.05367]
[1736519162749,3.05264,3275.9,3274.9,3.05349]
[1736519163029,3.43907408,3276.9,3275.3,0.0225]
[1736519163363,3.39582,3276.8,3275.8,3.05268]
[1736519163549,6.05182,3276.8,3275.9,3.05257]
[1736519163823,0.343,3276.7,3276.5,3.05202]
[1736519163967,0.343,3277.7,3276.7,0.0075]
[1736519164195,0.343,3277.7,3277.0,3.0515]
[1736519164330,3.05035,3278.4,3277.1,0.03051031]
[1736519164331,5.37,3278.4,3277.1,0.03051031]
[1736519164530,0.343,3278.3,3277.1,0.0225]
[1736519164785,0.343,3278.3,3277.5,3.05102]
[1736519165083,0.343,3278.3,3277.1,3.10439896]
[1736519165084,3.39336,3278.3,3277.3,3.05125]
[1736519165229,0.343,3278.3,3277.6,3.05849]
[1736519165437,0.343,3278.2,3277.6,3.08899646]
[1736519165830,0.343,3278.2,3277.5,0.305102]
[1736519166093,0.343,3278.2,3277.5,3.05109]
[1736519166394,0.343,3278.2,3277.3,3.05877]
[1736519166582,0.343,3278.2,3277.4,0.03050888]
[1736519166943,0.03503603,3278.1,3277.3,3.05877]
[1736519167276,0.343,3278.0,3277.4,0.03050888]
[1736519167432,0.343,3278.0,3277.3,3.365397]
[1736519167632,0.343,3278.0,3277.3,0.306627]
[1736519167944,0.03503603,3277.9,3277.1,3.05147]
[1736519168132,0.343,3278.0,3277.1,3.08198104]
[1736519168332,3.05048,3278.2,3277.1,3.08198104]
[1736519168333,0.343,3277.9,3277.5,0.0075]
[1736519168546,0.343,3278.2,3277.5,0.03800678]
[1736519168781,0.343,3278.2,3277.4,3.05119]
[1736519168945,0.343,3278.2,3277.4,3.05111]
[1736519169150,0.343,3278.2,3277.5,3.05109]
[1736519169354,0.55,3278.5,3277.5,0.30815981]
[1736519169552,0.343,3278.4,3277.5,3.05109]
[1736519169849,3.39328,3278.4,3277.5,3.05109]
[1736519170377,0.343,3278.4,3277.5,3.05109]
[1736519170577,0.58503603,3278.3,3277.1,3.05894]
[1736519170777,0.343,3278.4,3277.5,3.05106]
[1736519170953,0.343,3278.4,3277.7,3.05088]
[1736519171155,0.343,3278.4,3277.5,3.356176]
[1736519171576,0.55,3278.4,3277.5,0.305106]
[1736519171880,0.343,3278.3,3277.4,0.0305081]
[1736519172181,0.343,3278.3,3277.6,3.05095]
[1736519172353,0.343,3278.3,3277.9,3.0507]
[1736519172558,0.343,3278.2,3278.1,3.05053]
[1736519172749,4.278,3278.6,3278.3,3.05036]
[1736519172947,8.41927,3279.5,3278.4,3.05017]
[1736519173142,3.39238,3279.4,3278.4,3.05017]
[1736519173347,3.0,3279.2,3278.3,3.05035]
[1736519173693,0.03503603,3279.1,3278.3,3.05035]
[1736519174180,3.0,3279.2,3278.3,3.05035]
[1736519174396,0.03503603,3279.1,3278.3,3.05035]
[1736519174593,0.03503603,3279.1,3278.0,0.015]
[1736519174748,3.0,3279.2,3278.2,3.05044]
[1736519174968,3.0,3279.2,3278.3,3.05031]
[1736519175392,0.03503603,3279.1,3278.3,3.05031]
[1736519175619,3.0,3279.2,3278.4,3.05026]
[1736519175762,0.343,3279.4,3278.7,3.04991]
[1736519176261,5.37,3279.5,3278.7,3.04991]
[1736519176477,3.43907408,3279.1,3278.1,0.381597]
[1736519176716,0.03503603,3279.0,3277.9,0.7503]
[1736519176874,0.55,3279.2,3278.1,0.0075]
[1736519177754,0.55,3279.1,3278.1,3.05802]
[1736519178187,0.55,3279.1,3278.1,0.0075]
[1736519178403,3.0,3279.6,3278.1,0.0075]
[1736519178404,1.222012,3280.4,3279.2,0.0225]
[1736519178556,5.37,3280.8,3279.4,3.43907408]
[1736519178757,5.37,3280.8,3280.1,3.04868]
[1736519178954,3.0,3281.2,3280.2,3.04857]
[1736519179155,3.0,3281.2,3279.9,0.0379842]
[1736519179370,6.04767,3281.2,3279.9,0.0379842]
[1736519179685,9.37484309,3281.3,3280.1,3.04859]
[1736519179890,0.55,3281.2,3280.0,0.30869242]
[1736519180100,5.713,3281.3,3280.0,0.30869242]
[1736519180297,3.0,3281.2,3279.9,0.0379842]
[1736519180516,3.43907408,3281.0,3279.3,3.04937]
[1736519180652,3.59817,3280.7,3279.4,3.0]
[1736519180851,3.5984,3280.5,3279.4,3.04928]
[1736519181052,0.55,3280.3,3279.4,3.04928]
[1736519181275,0.03503603,3280.2,3279.3,3.05689]
[1736519181497,0.55,3280.1,3279.3,3.04939]
[1736519181669,0.55,3280.1,3278.9,0.015]
[1736519181670,0.03503603,3280.0,3278.9,0.015]
[1736519182014,0.03503603,3280.0,3279.1,3.04953]
[1736519182318,0.55,3279.9,3279.1,3.04953]
[1736519182457,0.03503603,3279.8,3279.1,3.04953]
[1736519182654,0.55,3280.1,3279.1,3.04953]
[1736519182856,0.55,3280.1,3279.0,0.03049357]
[1736519182857,0.343,3280.2,3279.5,3.04922]
[1736519183200,0.343,3280.2,3279.6,3.04907]
[1736519183497,3.66519791,3280.9,3279.8,3.04889]
[1736519183652,0.343,3280.4,3279.8,3.04889]
[1736519183986,0.343,3280.4,3279.6,0.03049065]
[1736519183987,0.343,3280.4,3279.6,3.07962065]
[1736519184194,0.343,3280.4,3279.7,0.41561926]
[1736519184991,0.343,3280.4,3279.7,3.46462926]
[1736519185397,0.58503603,3280.3,3279.4,3.04926]
[1736519186197,0.58503603,3280.3,3279.5,3.04922]
[1736519187262,0.343,3280.2,3279.5,3.04922]
[1736519187587,0.03503603,3280.1,3279.5,3.04922]
[1736519188300,0.03503603,3280.1,3279.6,3.04913]
[1736519188801,0.03503603,3280.1,3279.4,3.04931]
[1736519188993,0.58503603,3280.1,3278.9,0.68617542]
[1736519189200,0.55,3280.0,3279.1,3.04954]
[1736519189365,0.03503603,3279.9,3279.1,3.04954]
[1736519189571,0.58503603,3279.9,3279.0,0.44741996]
[1736519189763,0.55,3279.8,3278.9,3.04978]
[1736519190100,0.03503603,3279.7,3278.9,3.04978]
[1736519190406,3.04928,3279.5,3278.8,0.00482417]
[1736519190585,0.03503603,3279.4,3278.8,0.00482417]
[1736519190900,3.0,3280.1,3278.8,0.00482417]
[1736519191118,0.55,3279.7,3278.8,0.00482417]
[1736519191995,6.59905,3279.7,3278.8,0.00482417]
[1736519192909,3.04868,3280.1,3278.8,0.31030359]
[1736519193096,3.65488413,3280.3,3278.8,0.86192235]
[1736519193408,0.341,3280.0,3279.2,3.04943]
[1736519194171,0.341,3279.9,3279.1,3.04961]
[1736519194505,0.341,3279.9,3279.3,0.0075]
[1736519194880,0.341,3280.1,3279.3,0.0075]
[1736519195080,0.341,3280.1,3279.3,0.3177513]
[1736519195382,0.341,3280.1,3279.3,0.3102513]
[1736519195596,0.55,3280.0,3278.9,3.04978]
[1736519195793,3.04952,3279.2,3278.8,0.00482417]
[1736519195996,0.55,3279.1,3278.8,0.00482417]
[1736519196202,0.55,3278.9,3278.8,0.00482417]
[1736519196400,3.9408,3278.9,3278.8,0.00482417]
[1736519196573,6.9408,3278.9,3278.8,0.00482417]
[1736519196775,3.05066,3278.0,3276.8,0.8226]
[1736519196985,0.03503603,3277.9,3276.8,0.8226]
[1736519197222,0.03503603,3277.9,3277.1,3.05145]
[1736519197423,0.03503603,3277.9,3276.8,0.8226]
[1736519197596,3.0,3278.3,3277.1,3.05144]
[1736519197597,0.55,3278.0,3277.1,3.05144]
[1736519197796,0.55,3278.0,3276.8,0.8226]
[1736519197797,0.55,3277.8,3276.9,3.05162]
[1736519198000,0.341,3277.7,3276.9,0.03051345]
[1736519198730,0.341,3277.7,3277.2,3.05137]
[1736519199100,0.341,3277.7,3277.5,3.05108]
[1736519199292,0.341,3277.7,3277.3,3.356397]
[1736519199503,0.341,3277.7,3277.1,0.31906065]
[1736519199504,0.341,3277.7,3277.1,3.37051065]
[1736519199804,0.341,3277.7,3277.3,3.05127]
[1736519200197,0.341,3277.7,3277.5,3.05109]
[1736519200596,0.341,3277.7,3277.2,3.05132]
[1736519200808,0.341,3277.7,3277.1,0.34957172]
[1736519201018,3.0,3278.7,3277.9,3.05072]
[1736519201216,0.341,3278.1,3277.9,3.05072]
[1736519201433,0.341,3278.1,3278.0,3.355712]
[1736519201727,0.341,3278.1,3277.8,3.05079]
[1736519202198,0.341,3278.1,3277.7,0.03800592]
[1736519202532,0.03503603,3278.8,3278.3,0.0075]
[1736519202897,0.37603603,3278.9,3278.3,0.0075]
[1736519203104,0.59640664,3279.3,3278.5,3.05015]
[1736519203302,0.341,3279.2,3278.2,0.83529986]
[1736519203611,0.341,3279.2,3278.4,3.05026]
[1736519203836,0.341,3279.2,3278.8,3.04989]
[1736519204325,0.341,3279.2,3278.6,0.0075]
[1736519204526,0.341,3279.2,3278.5,0.33702176]
[1736519204527,0.341,3279.2,3278.8,3.04983]
[1736519204749,0.341,3279.2,3278.5,3.05008]
[1736519205239,0.341,3279.2,3278.6,3.05004]
[1736519205541,0.341,3279.2,3278.4,0.0075]
[1736519205695,0.341,3279.2,3278.5,3.05009]
[1736519205897,0.341,3279.2,3278.5,3.35889889]
[1736519206203,0.341,3279.2,3278.5,3.05009]
[1736519206801,0.03503603,3279.1,3278.2,0.8048]
[1736519207040,0.55,3279.0,3278.1,3.0505]
[1736519207336,0.55,3279.0,3277.9,0.03800235]
[1736519207495,3.0,3279.1,3277.8,3.0508]
[1736519207496,3.59998,3278.8,3277.8,3.0508]
[1736519207713,0.55,3278.6,3277.8,3.35588]
[1736519207899,3.43907408,3279.1,3277.4,3.83901]
[1736519207900,0.03503603,3278.5,3277.4,0.7804]
[1736519208124,0.55,3278.3,3277.5,3.05106]
[1736519208334,0.55,3278.4,3277.6,3.051]
[1736519208531,3.0,3278.5,3277.7,0.0075]
[1736519208865,3.04983,3278.9,3278.0,3.05063]
[1736519209028,0.55,3278.8,3278.0,3.05063]
[1736519209228,3.59989,3278.8,3277.8,3.05079]
[1736519209539,0.55,3278.6,3277.7,3.05091]
[1736519209758,0.55,3278.6,3277.2,3.0075]
[1736519209759,0.03503603,3278.5,3277.2,0.0075]
[1736519209906,3.03503603,3278.6,3277.6,3.05097]
[1736519210123,3.04959,3279.2,3278.1,3.05048]
[1736519210323,0.341,3279.1,3278.1,3.05048]
[1736519210518,0.341,3279.1,3277.9,0.7830026]
[1736519210703,3.0,3278.8,3278.0,0.0075]
[1736519210904,0.03503603,3278.7,3278.0,0.0075]
[1736519211109,3.08502603,3278.7,3277.7,3.0509]
[1736519211413,3.08502603,3278.7,3277.6,0.8119]
[1736519211414,0.55,3278.5,3277.6,0.8119]
[1736519211615,0.55,3278.7,3277.5,3.05102]
[1736519211813,0.55,3278.5,3277.2,0.8098]
[1736519212040,0.55,3278.5,3277.4,0.03050726]
[1736519212241,0.55,3278.3,3277.4,3.08162726]
[1736519212432,0.03503603,3278.2,3277.4,3.08162726]
[1736519212641,0.03503603,3278.2,3277.4,3.05112]
[1736519213410,0.55,3278.4,3277.5,3.0511]
[1736519213820,0.58503603,3278.3,3277.2,0.8098]
[1736519214019,0.55,3278.3,3277.4,0.03800826]
[1736519214219,0.03503603,3278.2,3277.4,0.0075]
[1736519214420,3.05028,3278.4,3277.5,3.05109]
[1736519214831,0.55,3278.3,3277.4,0.03050826]
[1736519215037,3.05045,3278.2,3277.3,3.37027989]
[1736519215234,0.55,3278.0,3277.3,0.31900989]
[1736519215440,0.55,3277.8,3277.3,0.31900989]
[1736519215626,0.03503603,3277.7,3277.3,0.31900989]
[1736519215827,0.55,3277.8,3277.3,0.31900989]
[1736519216874,0.55,3277.6,3277.3,0.31900989]
[1736519217057,0.341,3277.9,3277.3,0.31900989]
[1736519217058,0.03503603,3277.5,3277.3,0.31900989]
[1736519217240,3.78007408,3277.9,3277.3,0.31900989]
[1736519217241,3.55,3277.6,3277.3,0.31900989]
[1736519217447,3.08614603,3277.5,3277.3,0.31900989]
[1736519217642,0.55,3277.4,3276.5,0.7684]
[1736519217964,0.55,3277.4,3276.4,3.05208]
[1736519217965,3.60144,3277.2,3276.4,0.0075]
[1736519218251,0.03503603,3277.1,3276.4,0.0075]
[1736519218813,0.03503603,3277.1,3276.0,0.7684]
[1736519218814,0.55,3277.0,3276.0,0.7684]
[1736519219055,0.03503603,3276.9,3276.0,0.7684]
[1736519219217,0.55,3277.0,3276.1,3.05239]
[1736519219415,3.05098,3277.7,3276.2,0.0305222]
[1736519219724,0.341,3277.6,3276.8,0.0075]
[1736519219923,0.341,3277.6,3276.7,3.05183]
[1736519219924,0.37603603,3277.6,3276.7,3.05183]
[1736519220126,3.05131,3277.3,3276.3,0.8065]
[1736519220341,0.55,3277.1,3276.3,0.8065]
[1736519220557,0.03503603,3277.0,3276.2,3.05231]
[1736519220851,0.55,3277.0,3276.2,3.05231]
[1736519221149,0.341,3277.0,3276.4,0.015]
[1736519221431,0.341,3277.0,3276.7,3.05178]
[1736519221730,0.341,3277.0,3276.2,0.30828298]
[1736519221983,0.891,3277.0,3276.1,3.05231]
[1736519222128,0.58503603,3276.9,3276.1,3.05231]
[1736519222487,0.55,3276.9,3276.2,3.0523]
[1736519223042,0.55,3276.9,3276.0,0.03052136]
[1736519223374,0.55,3276.9,3276.0,3.05241]
[1736519223579,0.55,3276.7,3275.9,3.05257]
[1736519223913,3.08698603,3276.6,3275.7,3.05275]
[1736519224085,3.0,3276.5,3275.8,0.0075]
[1736519224382,0.03503603,3276.4,3275.6,3.05285]
[1736519224561,3.55,3276.7,3275.8,3.05268]
[1736519224562,6.60193,3276.7,3275.8,3.05268]
[1736519224761,0.55,3276.5,3275.6,3.05283]
[1736519225075,0.03503603,3276.4,3275.5,3.05293]
[1736519225774,3.05242,3276.1,3275.2,0.7757]
[1736519225981,3.05242,3276.1,3275.2,0.0075]
[1736519225982,0.03503603,3276.0,3275.2,0.0075]
[1736519226133,0.55,3275.7,3274.3,0.31911494]
[1736519226340,3.98907408,3275.5,3274.5,3.05387]
[1736519226575,3.05317,3275.3,3274.3,1.07831494]
[1736519226775,0.55,3275.5,3274.4,0.03053605]
[1736519226972,0.55,3275.5,3274.6,3.05373]
[1736519227171,0.03503603,3275.4,3274.6,3.05373]
[1736519227331,0.55,3275.5,3274.6,3.05373]
[1736519227754,0.55,3275.5,3274.7,3.05368]
[1736519227981,0.03503603,3275.4,3274.5,3.05386]
[1736519228187,0.03503603,3275.4,3274.6,3.0538]
[1736519228501,3.60299,3275.5,3274.4,0.03803543]
[1736519228502,0.55,3275.5,3274.4,0.03803543]
[1736519228691,0.03503603,3275.4,3274.5,3.05388]
[1736519228849,0.03503603,3275.4,3274.5,3.05381]
[1736519229661,3.08811603,3275.4,3274.4,0.0075]
[1736519229857,0.03503603,3275.4,3274.5,3.05389]
[1736519230470,3.08811603,3275.4,3274.5,3.05389]
[1736519230865,0.55,3275.3,3274.3,3.054]
[1736519231176,0.03503603,3275.2,3274.3,3.054]
[1736519231359,0.03503603,3275.2,3274.2,0.31896713]
[1736519231360,0.55,3275.1,3274.2,0.31896713]
[1736519231550,0.03503603,3275.0,3274.2,0.73387784]
[1736519231780,0.34,3275.6,3274.2,0.73387784]
[1736519231781,3.43907408,3275.4,3274.3,0.03053821]
[1736519231980,0.55,3275.2,3274.2,0.31896713]
[1736519232201,0.03503603,3275.1,3274.2,0.31896713]
[1736519232495,0.55,3275.2,3274.3,0.0380373]
[1736519232859,0.03503603,3275.1,3274.4,3.05398]
[1736519233093,0.55,3275.2,3274.4,3.05398]
[1736519233795,3.0527,3275.8,3274.8,3.05355]
[1736519233992,0.34,3275.2,3274.6,3.06127]
[1736519234196,0.34,3275.2,3274.7,0.03053344]
[1736519234417,0.34,3275.2,3274.8,3.05353]
[1736519234641,0.34,3275.2,3274.6,3.06126]
[1736519234828,0.34,3275.2,3274.2,3.37312713]
[1736519235174,0.89,3275.2,3274.5,3.05388]
[1736519235318,0.89,3275.2,3274.3,0.03803698]
[1736519235319,0.34,3275.2,3274.7,3.05371]
[1736519235479,0.34,3275.2,3274.7,0.0075]
[1736519235681,0.34,3275.2,3274.8,3.05358]
[1736519235926,0.34,3275.2,3274.2,0.73311984]
[1736519236081,3.60334,3275.1,3274.2,0.31896713]
[1736519236291,3.60334,3275.1,3274.2,3.37313713]
[1736519236292,0.55,3274.9,3274.2,3.37313713]
[1736519236486,0.03503603,3274.8,3274.2,3.37313713]
[1736519236802,0.03503603,3274.8,3274.2,0.31896713]
[1736519237326,3.6039,3274.5,3274.2,0.31896713]
[1736519237543,6.60408,3274.3,3274.2,0.31896713]
[1736519238004,3.55,3274.3,3274.2,0.31896713]
[1736519238348,3.0,3274.3,3273.8,3.05453]
[1736519238638,0.03503603,3274.2,3272.9,0.806]
[1736519238788,0.55,3274.2,3273.2,0.0075]
[1736519239042,0.55,3274.2,3273.3,0.30627]
[1736519239338,0.55,3274.2,3273.3,0.03054659]
[1736519239565,0.58503603,3274.2,3273.2,3.05506]
[1736519239733,0.55,3274.2,3273.3,3.05499]
[1736519239939,0.55,3274.2,3273.4,3.0549]
[1736519240152,0.55,3274.2,3273.5,3.05481]
[1736519240389,5.37,3274.7,3273.6,0.03804771]
[1736519240553,5.37,3274.7,3273.9,3.05444]
[1736519240749,5.37,3274.7,3273.7,0.03054228]
[1736519240990,6.47411011,3274.6,3273.2,0.806]
[1736519241192,0.55,3274.2,3273.4,3.05485]
[1736519241347,0.55,3274.2,3273.3,0.0075]
[1736519241348,0.03503603,3274.1,3273.3,0.0075]
[1736519241538,0.34,3274.0,3273.2,0.0075]
[1736519241997,0.34,3274.0,3273.4,3.05486]
[1736519242213,0.34,3274.0,3273.2,3.05508]
[1736519242500,0.34,3274.0,3273.1,0.0305477]
[1736519242703,0.34,3274.0,3273.2,3.06253]
[1736519242852,0.34,3274.0,3273.3,3.055]
[1736519242853,0.03503603,3273.9,3273.3,3.055]
[1736519243256,0.03503603,3273.9,3273.1,3.05517]
[1736519243452,0.03503603,3273.9,3273.0,0.31888292]
[1736519243687,0.03503603,3273.9,3273.1,3.05519]
[1736519243904,0.55,3273.8,3273.1,3.05519]
[1736519244070,0.03503603,3273.7,3273.1,3.05519]
[1736519244580,0.34,3274.0,3273.2,3.05507]
[1736519244581,0.55,3273.9,3273.2,3.05507]
[1736519245077,0.03503603,3273.8,3273.0,3.37416292]
[1736519245454,0.03503603,3273.8,3273.1,3.05516]
[1736519245793,0.03503603,3273.8,3273.2,3.0551]
[1736519245963,0.55,3273.9,3273.2,3.0551]
[1736519246494,0.55,3273.9,3273.0,0.34943209]
[1736519246495,3.55,3273.7,3272.5,0.757]
[1736519246653,3.60486,3273.5,3272.1,3.05613]
[1736519246855,0.55,3273.1,3272.2,3.05604]
[1736519247105,3.05513,3273.2,3272.2,3.05604]
[1736519247106,0.03503603,3273.0,3272.2,3.05604]
[1736519247322,0.03503603,3273.0,3272.4,3.05585]
[1736519247609,0.03503603,3273.0,3272.1,0.7555]
[1736519247610,0.58503603,3273.2,3272.1,0.0075]
[1736519247825,0.55,3273.2,3272.1,0.03805654]
[1736519248031,0.55,3273.2,3272.4,3.05579]
[1736519248187,6.05472,3273.7,3272.7,3.05555]
[1736519248391,6.05472,3273.7,3272.8,3.05546]
[1736519248727,3.05446,3273.9,3272.6,0.0225]
[1736519249039,3.43907408,3274.2,3272.9,0.0075]
[1736519249237,3.43907408,3274.2,3272.9,0.8233]
[1736519249382,0.55,3273.9,3273.1,3.05516]
[1736519249871,0.55,3273.9,3273.0,0.39092931]
[1736519249872,0.03503603,3273.8,3273.0,0.39092931]
[1736519250237,3.55,3273.7,3272.3,3.05586]
[1736519250378,0.55,3273.4,3272.4,0.0305549]
[1736519251076,3.55,3273.4,3272.5,3.05568]
[1736519251479,0.55,3273.2,3272.5,3.05568]
[1736519251724,0.03503603,3273.1,3272.5,3.05568]
[1736519252230,0.55,3273.3,3272.5,3.05568]
[1736519252578,0.03503603,3273.2,3272.3,0.0075]
[1736519252884,0.03503603,3273.2,3272.4,3.05583]
[1736519253407,0.55,3273.1,3272.4,3.05583]
[1736519253576,0.03503603,3273.0,3272.0,0.1177341]
[1736519253780,0.55,3272.8,3272.0,3.1739641]
[1736519254048,0.03503603,3272.7,3272.0,0.1177341]
[1736519254591,0.55,3272.8,3272.0,0.1177341]
[1736519254901,0.55,3272.8,3272.1,3.05604]
[1736519255102,0.339,3272.9,3272.1,0.32043334]
[1736519255316,0.61286876,3273.5,3272.3,3.07091]
[1736519255533,0.339,3272.9,3272.8,3.05548]
[1736519255733,0.339,3273.2,3272.8,3.05548]
[1736519256920,0.339,3273.2,3272.6,3.05562]
[1736519257141,0.339,3273.2,3272.4,3.05582]
[1736519257300,0.03503603,3273.1,3272.4,3.05582]
[1736519257497,0.58503603,3273.1,3272.2,3.87182]
[1736519257719,0.55,3273.1,3272.4,3.05585]
[1736519257922,0.55,3273.0,3272.3,0.03055623]
[1736519258227,0.55,3273.0,3272.2,3.05601]
[1736519258749,0.03503603,3272.9,3272.2,3.05601]
[1736519259628,0.55,3272.8,3272.1,3.05613]
[1736519259830,0.55,3272.8,3272.0,0.14829267]
[1736519260028,0.03503603,3272.7,3272.0,0.1177341]
[1736519260418,0.339,3273.2,3272.6,3.05561]
[1736519260919,0.339,3273.2,3272.7,3.0860537]
[1736519261237,0.339,3273.2,3272.2,0.0075]
[1736519261409,0.58503603,3273.1,3272.2,0.0075]
[1736519261749,0.55,3273.0,3272.4,3.05579]
[1736519264242,0.37403603,3274.1,3272.8,3.07046]
[1736519264422,0.55,3273.8,3273.0,3.05522]
[1736519264639,3.05483,3273.5,3272.6,3.05563]
[1736519264949,3.43907408,3273.8,3272.1,3.81043]
[1736519264950,0.58503603,3273.4,3272.5,3.05575]
[1736519265135,3.60519,3273.2,3272.1,0.7543]
[1736519265335,0.55,3273.0,3272.2,3.05601]
[1736519265647,0.339,3272.9,3272.3,3.05592]
[1736519265847,0.03503603,3272.8,3272.1,3.0561]
[1736519266010,0.03503603,3272.8,3272.0,3.1738941]
[1736519266211,0.55,3272.8,3272.2,3.05595]
[1736519266678,0.58503603,3272.8,3272.0,0.1177341]
[1736519266816,3.60557,3272.8,3272.0,0.1177341]
[1736519267752,3.64060603,3272.8,3272.0,0.1177341]
[1736519268068,0.55,3272.6,3272.0,0.1177341]
[1736519268352,0.03503603,3272.5,3272.0,0.1177341]
[1736519268715,0.55,3272.7,3272.0,0.1177341]
[1736519269040,0.03503603,3272.6,3272.0,0.1177341]
[1736519269840,0.55,3272.7,3272.0,0.1177341]
[1736519270066,0.03503603,3272.6,3272.0,0.1177341]
[1736519270258,0.03503603,3272.6,3272.2,0.8102]
[1736519270474,0.03503603,3273.0,3272.3,0.0075]
[1736519270756,0.339,3272.9,3272.4,3.05585]
[1736519271458,0.55,3272.8,3272.0,3.1739441]
[1736519271621,0.55,3272.8,3272.1,3.05613]
[1736519271820,0.55,3272.8,3272.0,0.14829066]
[1736519272357,0.55,3272.8,3272.0,0.1177341]
[1736519272595,0.55,3273.1,3272.0,0.1177341]
[1736519272819,0.55,3272.6,3272.0,0.1177341]
[1736519273297,0.55,3272.4,3272.0,0.1177341]
[1736519273503,0.03503603,3272.3,3272.0,0.1177341]
[1736519273886,3.09100603,3272.3,3272.0,0.1177341]
[1736519274272,0.03503603,3272.3,3272.0,0.1177341]
[1736519274492,3.60614,3272.1,3272.0,0.1177341]
[1736519274663,3.64117603,3272.1,3272.0,0.1177341]
[1736519274866,3.60614,3272.1,3272.0,0.1177341]
[1736519276081,10.04521408,3272.1,3272.0,0.1177341]
[1736519278608,3.05632,3271.9,3270.0,0.7592]
[1736519278907,3.55,3271.3,3270.0,3.81724]
[1736519279108,0.55,3270.8,3270.0,1.140924]
[1736519279309,0.55,3270.8,3270.0,0.7592]
[1736519279310,0.55,3270.6,3270.0,0.7592]
[1736519279508,0.55,3270.4,3269.6,0.7592]
[1736519279673,0.03503603,3270.3,3269.4,3.05858]
[1736519280210,0.03503603,3270.3,3269.4,0.05008238]
[1736519280379,5.709,3271.7,3270.7,3.05739]
[1736519280583,3.05671,3271.5,3270.4,3.05764]
[1736519280781,0.339,3271.7,3270.5,0.33633577]
[1736519281086,0.339,3271.7,3270.7,0.7599]
[1736519281285,0.55,3271.2,3270.4,0.7599]
[1736519281593,3.60681,3271.4,3270.4,0.7599]
[1736519281914,0.55,3271.2,3270.0,0.7561]
[1736519282115,0.55,3271.0,3270.0,0.7561]
[1736519282316,3.55,3270.8,3269.9,3.05819]
[1736519282498,0.55,3270.8,3270.0,3.05806]
[1736519282897,5.37,3271.4,3270.5,3.05757]
[1736519283410,0.5996883,3271.7,3270.7,0.0225]
[1736519283615,3.43907408,3272.3,3270.9,3.05718]
[1736519283616,0.337,3271.3,3270.9,3.05718]
[1736519283788,0.337,3271.4,3270.7,3.06491]
[1736519284108,0.337,3271.3,3271.0,3.05708]
[1736519284410,0.55,3271.1,3270.3,0.7641]
[1736519284726,0.03503603,3271.0,3270.4,3.05772]
[1736519285009,0.337,3271.0,3270.4,3.05772]
[1736519285213,0.337,3271.0,3270.5,3.05759]
[1736519285712,0.337,3271.0,3270.5,3.10764883]
[1736519285910,0.337,3271.0,3270.7,3.05741]
[1736519286112,0.337,3271.3,3270.8,0.03057364]
[1736519286328,0.337,3271.3,3271.2,3.05698]
[1736519286540,3.05609,3272.2,3271.2,3.05698]
[1736519286692,0.337,3271.7,3271.2,3.05698]
[1736519287093,0.337,3271.7,3271.4,3.05679]
[1736519287570,0.337,3271.7,3271.3,0.0075]
[1736519288006,0.337,3271.7,3271.1,3.05706]
[1736519288212,0.28485883,3271.6,3271.2,0.03056662]
[1736519288381,0.28485883,3271.6,3271.3,3.05686]
[1736519288598,0.28485883,3271.6,3271.5,3.0792]
[1736519288937,0.28485883,3271.6,3271.5,3.9046608]
[1736519289410,0.28485883,3271.6,3271.5,7.34373488]
[1736519289630,4.284,3272.7,3272.4,3.05585]
[1736519290532,4.621,3272.7,3272.4,3.05585]
[1736519291193,8.80907408,3274.3,3272.7,0.0225]
[1736519291523,0.55,3274.0,3272.8,0.0075]
[1736519291779,0.60672684,3274.1,3273.4,0.0075]
[1736519291918,0.60672684,3274.1,3273.3,3.055]
[1736519291919,0.337,3274.0,3273.5,0.0075]
[1736519292119,0.337,3274.0,3273.8,3.05448]
[1736519292321,0.83628124,3274.7,3273.7,0.0075]
[1736519292561,0.337,3274.5,3273.9,0.0075]
[1736519292756,0.337,3274.5,3274.1,3.05424]
[1736519293257,0.337,3274.4,3273.9,3.08498064]
[1736519293564,3.66600485,3275.0,3273.9,3.08498064]
[1736519293855,0.337,3274.5,3274.0,3.05432]
[1736519294255,0.337,3274.5,3274.3,0.0075]
[1736519294447,0.337,3274.5,3274.4,0.0075]
[1736519294644,0.337,3274.5,3274.4,3.06149]